bitfinex/quotes_BTCUSD_20250417
["timestamp","ask_amount","ask_price","bid_price","bid_amount"]
[1744880629874,0.32702704,84341.0,84340.0,0.0014215]
[1744880630313,0.33002704,84341.0,84340.0,0.0004215]
[1744880631167,0.33202704,84341.0,84340.0,0.0004215]
[1744880631550,0.32902704,84341.0,84340.0,0.0004215]
[1744880631926,0.33302704,84341.0,84340.0,0.0004215]
[1744880632088,0.33773505,84341.0,84340.0,0.0004215]
[1744880632530,0.38993505,84341.0,84340.0,0.0014215]
[1744880632907,0.39093505,84341.0,84340.0,0.0014215]
[1744880633345,0.38993505,84341.0,84340.0,0.0014215]
[1744880633762,0.39393505,84341.0,84340.0,0.0014215]
[1744880634111,0.51338296,84341.0,84340.0,0.0014215]
[1744880634368,0.91996285,84341.0,84340.0,1e-08]
[1744880635227,0.28375789,84332.0,84331.0,0.0004214]
[1744880635573,0.48582086,84332.0,84331.0,0.0004214]
[1744880636031,0.46375789,84332.0,84331.0,0.0004214]
[1744880636554,0.46575789,84332.0,84331.0,0.0004214]
[1744880636772,0.47075789,84332.0,84331.0,0.0014214]
[1744880637510,0.187,84332.0,84331.0,0.23858211]
[1744880637915,0.187,84332.0,84331.0,0.0014214]
[1744880639051,0.187,84332.0,84331.0,0.23858211]
[1744880639176,0.187,84332.0,84331.0,0.0014214]
[1744880639379,0.187,84332.0,84331.0,0.23858211]
[1744880639603,0.187,84332.0,84331.0,0.0014214]
[1744880640374,0.187,84332.0,84331.0,0.23858211]
[1744880640784,0.187,84332.0,84331.0,0.0014214]
[1744880641401,0.18936982,84332.0,84331.0,0.0014214]
[1744880646427,0.00936982,84332.0,84331.0,0.0014214]
[1744880647774,0.007,84332.0,84331.0,0.0014214]
[1744880648112,0.017,84332.0,84331.0,0.0014214]
[1744880653004,0.007,84332.0,84331.0,0.35903002]
[1744880654143,0.005,84332.0,84331.0,0.35903002]
[1744880655033,0.01185648,84342.0,84339.0,0.23713678]
[1744880655381,0.01185677,84340.0,84337.0,0.23714276]
[1744880655656,0.01185733,84336.0,84332.0,0.23715789]
[1744880655858,0.01185719,84337.0,84333.0,0.23715302]
[1744880657817,0.01285719,84337.0,84333.0,0.23715302]
[1744880658312,0.01485719,84337.0,84333.0,0.23715302]
[1744880658991,0.003,84337.0,84333.0,0.23715302]
[1744880659194,0.003,84337.0,84334.0,0.23715021]
[1744880660061,0.013,84337.0,84334.0,0.23715021]
[1744880660496,0.012,84337.0,84334.0,0.23715021]
[1744880660708,0.013,84337.0,84334.0,0.23715021]
[1744880661363,0.011,84337.0,84334.0,0.23715021]
[1744880661660,0.013,84337.0,84334.0,0.23715021]
[1744880662982,0.013,84337.0,84335.0,0.23714768]
[1744880663732,0.012,84337.0,84335.0,0.23714768]
[1744880663925,0.01,84337.0,84335.0,0.23714768]
[1744880664137,0.014,84337.0,84335.0,0.23714768]
[1744880664349,0.02585719,84337.0,84331.0,0.0014214]
[1744880664548,0.01185747,84335.0,84331.0,0.0014214]
[1744880664767,0.01,84335.0,84331.0,0.23857994]
[1744880665109,0.01185761,84334.0,84331.0,0.23857994]
[1744880665436,0.02185761,84334.0,84331.0,0.23857994]
[1744880666109,0.23715508,84333.0,84331.0,0.0014214]
[1744880666285,0.01185761,84334.0,84331.0,0.0014214]
[1744880666493,0.23715508,84333.0,84331.0,0.0014214]
[1744880666689,0.39715508,84333.0,84331.0,0.0014214]
[1744880668034,0.39915508,84333.0,84331.0,0.0014214]
[1744880668222,0.00236982,84332.0,84331.0,0.0014214]
[1744880668432,0.17236982,84332.0,84331.0,0.0014214]
[1744880670996,0.17436982,84332.0,84331.0,0.0014214]
[1744880674706,0.22126982,84332.0,84331.0,0.0014214]
[1744880676299,0.22326982,84332.0,84331.0,0.0014214]
[1744880676949,0.22026982,84332.0,84331.0,0.0014214]
[1744880677153,0.22426982,84332.0,84331.0,0.0024214]
[1744880678102,0.24631955,84332.0,84331.0,0.0024214]
[1744880678303,0.24394973,84332.0,84331.0,0.0024214]
[1744880683988,0.19704973,84332.0,84331.0,0.0024214]
[1744880684166,0.19941955,84332.0,84331.0,0.0024214]
[1744880685428,0.17736982,84332.0,84331.0,0.0024214]
[1744880688152,0.19941685,84332.0,84331.0,0.0024214]
[1744880689248,0.17736982,84332.0,84331.0,0.0024214]
[1744880691150,0.17736982,84332.0,84331.0,0.0014214]
[1744880691151,0.17636982,84332.0,84331.0,0.0014214]
[1744880691370,0.19842351,84332.0,84331.0,0.0014214]
[1744880693107,0.20945324,84332.0,84331.0,0.0014214]
[1744880705780,0.18739955,84332.0,84331.0,0.0014214]
[1744880706013,0.17636982,84332.0,84331.0,0.0014214]
[1744880706752,0.174,84332.0,84331.0,0.0014214]
[1744880706961,0.17636982,84332.0,84331.0,0.0014214]
[1744880712419,0.174,84332.0,84331.0,0.0014214]
[1744880712620,0.174,84332.0,84331.0,0.23958211]
[1744880712823,0.004,84332.0,84331.0,0.23958211]
[1744880714329,0.004,84332.0,84331.0,0.35903002]
[1744880718561,0.004,84332.0,84331.0,0.46887087]
[1744880719616,0.003,84332.0,84331.0,0.46887087]
[1744880719942,0.0118562,84344.0,84341.0,0.01185662]
[1744880720143,0.01185606,84345.0,84342.0,0.24898626]
[1744880720349,0.01185606,84345.0,84342.0,0.01185648]
[1744880720640,0.23712089,84346.0,84342.0,0.24898598]
[1744880720856,0.24897681,84346.0,84342.0,0.01185648]
[1744880721231,0.23708928,84357.0,84342.0,0.01185648]
[1744880721232,0.23708928,84357.0,84345.0,0.01185606]
[1744880721439,0.01185536,84350.0,84346.0,0.0478]
[1744880721761,0.01185536,84350.0,84347.0,0.022159]
[1744880722670,0.01185494,84353.0,84347.0,0.022159]
[1744880722841,0.00545251,84348.0,84347.0,0.023159]
[1744880723050,0.00545251,84348.0,84347.0,0.14260691]
[1744880723245,0.00345251,84348.0,84347.0,0.14260691]
[1744880723773,0.00545251,84348.0,84347.0,0.14260691]
[1744880731855,0.00545251,84348.0,84347.0,0.20584776]
[1744880732763,0.00045251,84348.0,84347.0,0.20484776]
[1744880732967,0.00145251,84348.0,84347.0,0.20784776]
[1744880734107,0.00145251,84348.0,84347.0,0.20884776]
[1744880740599,0.00145251,84348.0,84347.0,0.34464776]
[1744880742639,0.00145251,84348.0,84347.0,0.29694776]
[1744880743255,0.00145251,84348.0,84347.0,0.28240691]
[1744880743661,0.00145251,84348.0,84347.0,0.26024791]
[1744880745128,0.00145251,84348.0,84347.0,0.12444791]
[1744880745365,0.00145251,84348.0,84347.0,0.005]
[1744880745567,0.01482233,84348.0,84347.0,0.005]
[1744880745740,0.00482233,84348.0,84347.0,0.005]
[1744880745940,0.01482233,84348.0,84347.0,0.005]
[1744880746301,0.01382233,84348.0,84347.0,0.002]
[1744880746520,0.01482233,84348.0,84347.0,0.002]
[1744880746722,0.01482233,84348.0,84347.0,0.001]
[1744880746926,0.06462233,84348.0,84347.0,0.001]
[1744880747890,0.10982233,84348.0,84347.0,0.001]
[1744880748114,0.10882233,84348.0,84347.0,0.001]
[1744880748315,0.10982233,84348.0,84347.0,0.001]
[1744880748586,0.11382233,84348.0,84347.0,0.002]
[1744880749800,0.11282233,84348.0,84347.0,0.002]
[1744880750082,0.11482233,84348.0,84347.0,0.002]
[1744880751222,0.11382233,84348.0,84347.0,0.001]
[1744880751423,0.11482233,84348.0,84347.0,0.001]
[1744880752732,0.01982233,84348.0,84347.0,0.001]
[1744880756738,0.01745251,84348.0,84347.0,0.001]
[1744880756942,0.00745251,84348.0,84347.0,0.05]
[1744880757204,0.00745251,84348.0,84347.0,0.17044791]
[1744880757453,0.00745251,84348.0,84347.0,0.53260592]
[1744880758352,0.00345251,84348.0,84347.0,0.53160592]
[1744880758732,0.00145251,84348.0,84347.0,0.53360592]
[1744880759130,0.00245251,84348.0,84347.0,0.53360592]
[1744880759533,0.00145251,84348.0,84347.0,0.54814677]
[1744880759929,0.00145251,84348.0,84347.0,0.54914677]
[1744880761596,0.00045251,84348.0,84347.0,0.54914677]
[1744880764300,0.00045251,84348.0,84347.0,0.59824677]
[1744880765144,0.00045251,84348.0,84347.0,0.59924677]
[1744880765540,0.00045251,84348.0,84347.0,0.59624677]
[1744880765962,0.00145251,84348.0,84347.0,0.60224677]
[1744880770161,0.00145251,84348.0,84347.0,0.73796677]
[1744880772374,0.00145251,84348.0,84347.0,0.73696677]
[1744880772570,0.00145251,84348.0,84347.0,0.60124677]
[1744880772831,0.00145251,84348.0,84347.0,0.73696677]
[1744880775679,0.00145251,84348.0,84347.0,0.60124677]
[1744880775885,0.00145251,84348.0,84347.0,0.73696677]
[1744880776868,0.00145251,84348.0,84347.0,0.28432592]
[1744880777166,0.00145251,84348.0,84347.0,0.62432592]
[1744880777693,0.00145251,84348.0,84347.0,0.28432592]
[1744880777869,0.00145251,84348.0,84347.0,0.62432592]
[1744880782564,0.00145251,84348.0,84347.0,0.48860592]
[1744880788411,0.00145251,84348.0,84347.0,0.53740592]
[1744880788688,0.00145251,84348.0,84347.0,0.59724677]
[1744880791498,0.0498,84373.0,84370.0,0.01185255]
[1744880791671,0.000843,84374.0,84372.0,0.23704546]
[1744880791891,0.000843,84374.0,84373.0,0.11944791]
[1744880792072,0.000843,84374.0,84373.0,0.14160592]
[1744880792878,0.000843,84374.0,84373.0,0.16682597]
[1744880793079,0.001843,84374.0,84373.0,0.55362597]
[1744880793307,0.001843,84374.0,84373.0,0.55125575]
[1744880793465,0.001843,84374.0,84373.0,0.55139113]
[1744880793849,0.001843,84374.0,84373.0,0.56505706]
[1744880794616,0.001843,84374.0,84373.0,0.56605706]
[1744880794784,0.000843,84374.0,84373.0,0.56605706]
[1744880794991,0.000843,84374.0,84373.0,0.56705706]
[1744880796211,0.000843,84374.0,84373.0,0.61695706]
[1744880796407,0.0008428,84395.0,84381.0,0.59156103]
[1744880796593,0.0008428,84395.0,84381.0,0.84812894]
[1744880796795,0.0008428,84395.0,84381.0,0.88134559]
[1744880797483,0.0008428,84395.0,84381.0,0.93485457]
[1744880797657,0.0018428,84382.0,84381.0,0.93485457]
[1744880798098,0.0038428,84382.0,84381.0,0.93485457]
[1744880798296,0.0008428,84382.0,84381.0,0.93485457]
[1744880798920,0.0008428,84382.0,84381.0,0.92379593]
[1744880799119,0.0018428,84382.0,84381.0,0.92379593]
[1744880800072,0.0018428,84382.0,84381.0,1.34259593]
[1744880801249,0.0018428,84382.0,84381.0,1.29739593]
[1744880803550,0.0018428,84382.0,84381.0,1.28908695]
[1744880805275,0.0018428,84382.0,84381.0,1.15196695]
[1744880805477,0.0018428,84382.0,84381.0,1.28904695]
[1744880805665,0.0018428,84382.0,84381.0,0.94904695]
[1744880805865,0.0018428,84382.0,84381.0,0.53024695]
[1744880806686,0.0018428,84382.0,84381.0,0.25917819]
[1744880808719,0.0018428,84382.0,84381.0,0.27371904]
[1744880809020,0.0018428,84382.0,84381.0,0.39316695]
[1744880819858,0.0018428,84382.0,84381.0,0.02215801]
[1744880820059,0.0518428,84382.0,84381.0,0.02215801]
[1744880821649,0.0028428,84382.0,84381.0,0.02215801]
[1744880822532,0.01185171,84376.0,84373.0,0.00013538]
[1744880822735,0.23703984,84374.0,84373.0,0.00013538]
[1744880822946,0.28463984,84374.0,84373.0,0.00013538]
[1744880823242,0.28463984,84374.0,84373.0,0.02230494]
[1744880823572,0.28463984,84374.0,84373.0,0.00013538]
[1744880824803,0.34173984,84374.0,84373.0,0.00013538]
[1744880828296,0.34273984,84374.0,84373.0,0.00013538]
[1744880832136,0.34173984,84374.0,84373.0,0.00013538]
[1744880832544,0.34373984,84374.0,84373.0,0.00013538]
[1744880833047,0.34173984,84374.0,84373.0,0.00013538]
[1744880833390,0.33973984,84374.0,84373.0,0.00013538]
[1744880833807,0.34473984,84374.0,84373.0,0.00013538]
[1744880834041,0.34173984,84374.0,84373.0,0.00013538]
[1744880834229,0.34173984,84374.0,84373.0,0.00113538]
[1744880834433,0.34673984,84374.0,84373.0,0.00113538]
[1744880835014,0.34473984,84374.0,84373.0,0.00113538]
[1744880835402,0.34773984,84374.0,84373.0,0.00113538]
[1744880843517,0.25503984,84374.0,84373.0,0.00113538]
[1744880843729,0.018,84374.0,84373.0,0.00113538]
[1744880843934,0.018,84374.0,84373.0,0.02325696]
[1744880845085,0.008,84374.0,84373.0,0.02325696]
[1744880846960,0.008,84374.0,84373.0,0.18890487]
[1744880847294,0.008,84374.0,84373.0,0.19720578]
[1744880849648,0.008,84374.0,84373.0,0.55411689]
[1744880849848,0.008,84374.0,84373.0,0.55174663]
[1744880850286,0.005,84374.0,84373.0,0.55174663]
[1744880850713,0.0018428,84382.0,84380.0,0.23702299]
[1744880850851,0.0018428,84382.0,84381.0,0.14156949]
[1744880851712,0.0018428,84382.0,84381.0,0.1498704]
[1744880851885,0.0038428,84382.0,84381.0,0.1498704]
[1744880852085,0.0078428,84382.0,84381.0,0.1508704]
[1744880853830,0.0058428,84382.0,84381.0,0.1508704]
[1744880854053,0.0078428,84382.0,84381.0,0.1508704]
[1744880857567,0.0078428,84382.0,84381.0,0.16541125]
[1744880859123,0.0078428,84382.0,84381.0,0.21501125]
[1744880859649,0.0078428,84382.0,84381.0,0.21738121]
[1744880860037,0.0078428,84382.0,84381.0,0.20738121]
[1744880860457,0.0078428,84382.0,84381.0,0.59718121]
[1744880860637,0.0078428,84382.0,84381.0,0.59481125]
[1744880861282,0.0038428,84382.0,84381.0,0.59381125]
[1744880861578,0.0058428,84382.0,84381.0,0.59381125]
[1744880862139,0.0038428,84382.0,84381.0,0.59381125]
[1744880862762,0.0048428,84382.0,84381.0,0.59381125]
[1744880868146,0.0018428,84382.0,84381.0,0.59381125]
[1744880868527,0.0018428,84382.0,84381.0,0.59481125]
[1744880868731,0.0018428,84382.0,84381.0,0.59581125]
[1744880871173,0.0008428,84382.0,84381.0,0.58851034]
[1744880871381,0.0008428,84382.0,84381.0,0.59680243]
[1744880871760,0.0008428,84382.0,84381.0,0.58851034]
[1744880873078,0.0008428,84382.0,84381.0,0.59680489]
[1744880873278,0.0008428,84382.0,84381.0,0.73360489]
[1744880873680,0.0008428,84382.0,84381.0,1.15240489]
[1744880881283,0.0008428,84382.0,84381.0,1.14411034]
[1744880886204,0.0008428,84382.0,84381.0,1.09451034]
[1744880886413,0.0008428,84382.0,84381.0,1.04471034]
[1744880890829,0.0008428,84382.0,84381.0,0.90791034]
[1744880891116,0.0008428,84382.0,84381.0,1.04335034]
[1744880895284,0.0008434,84386.0,84385.0,0.23700894]
[1744880895479,0.0008434,84386.0,84385.0,0.71336729]
[1744880895653,0.0008428,84395.0,84394.0,0.59152452]
[1744880895792,0.0008428,84395.0,84394.0,0.75727243]
[1744880895995,0.0008428,84395.0,84394.0,0.7655963]
[1744880896208,0.0008428,84395.0,84394.0,0.92315788]
[1744880896540,0.0008428,84395.0,84394.0,0.93600448]
[1744880897155,0.0008428,84395.0,84394.0,0.93700448]
[1744880897357,0.0008428,84395.0,84394.0,0.93800448]
[1744880901173,0.0008428,84397.0,84394.0,0.93800448]
[1744880901174,0.0008428,84397.0,84396.0,0.5915189]
[1744880901379,0.0008428,84397.0,84396.0,0.71096681]
[1744880901625,0.0008428,84397.0,84396.0,0.71929068]
[1744880901821,0.0008428,84397.0,84396.0,0.74141226]
[1744880902805,0.0008428,84397.0,84396.0,0.74341226]
[1744880903090,0.0008428,84397.0,84396.0,0.74541226]
[1744880905656,0.0008428,84397.0,84396.0,1.16421226]
[1744880907163,1e-08,84397.0,84396.0,1.16421226]
[1744880907369,1e-08,84399.0,84398.0,0.59151329]
[1744880907585,1e-08,84399.0,84398.0,0.78048278]
[1744880907828,0.00080281,84404.0,84403.0,0.59149925]
[1744880908005,0.00080281,84404.0,84403.0,0.73306874]
[1744880908210,0.00080281,84404.0,84403.0,0.78036874]
[1744880908611,0.00080281,84404.0,84403.0,0.78869261]
[1744880909040,0.00080281,84404.0,84403.0,0.78882799]
[1744880911459,0.00080281,84404.0,84403.0,1.20762799]
[1744880921368,0.00080281,84404.0,84403.0,1.16032799]
[1744880921768,0.00080281,84404.0,84403.0,1.29656799]
[1744880922337,0.00180281,84404.0,84403.0,0.52322714]
[1744880922696,0.04970281,84404.0,84403.0,0.85490327]
[1744880923085,0.04970281,84404.0,84403.0,0.86944412]
[1744880924422,0.04970281,84404.0,84403.0,0.02225696]
[1744880924587,0.05207263,84404.0,84403.0,0.02225696]
[1744880925604,0.2866584,84404.0,84403.0,0.00013538]
[1744880926266,0.2886584,84404.0,84403.0,0.02225696]
[1744880926722,0.05170281,84404.0,84403.0,0.00013538]
[1744880930129,0.05407263,84404.0,84403.0,0.00013538]
[1744880930821,0.05170281,84404.0,84403.0,0.00013538]
[1744880931032,0.05170281,84404.0,84403.0,0.23709378]
[1744880931235,0.00280281,84404.0,84403.0,0.35654169]
[1744880931441,0.00280281,84404.0,84403.0,0.37865606]
[1744880932071,0.00280281,84404.0,84403.0,0.38694771]
[1744880933822,0.00280281,84404.0,84403.0,0.37865606]
[1744880934076,0.00280281,84404.0,84403.0,0.39319691]
[1744880941232,0.00280281,84404.0,84403.0,0.37108254]
[1744880943946,0.00280281,84404.0,84403.0,0.50736254]
[1744880945361,0.00280281,84404.0,84403.0,0.52948122]
[1744880945994,0.00280281,84404.0,84403.0,0.50736254]
[1744880963149,0.00280281,84404.0,84403.0,0.50660254]
[1744880973875,0.00280281,84404.0,84403.0,0.50660254]
[1744880979109,0.00280281,84404.0,84403.0,0.49206169]
[1744880979408,0.00280281,84404.0,84403.0,0.50544254]
[1744880998066,0.00280281,84404.0,84403.0,0.84644254]
[1744881002394,0.00280281,84404.0,84403.0,1.26524254]
[1744881009723,0.0008426,84408.0,84407.0,0.63748802]
[1744881009917,0.0008426,84408.0,84407.0,0.75693593]
[1744881010891,0.0008426,84408.0,84407.0,0.75793593]
[1744881011092,0.000843,84424.0,84422.0,0.23690507]
[1744881011297,0.000843,84424.0,84423.0,0.26762876]
[1744881012449,0.004843,84424.0,84423.0,0.26762876]
[1744881012602,0.002843,84424.0,84423.0,0.26762876]
[1744881013029,0.006843,84424.0,84423.0,0.26762876]
[1744881013656,0.004843,84424.0,84423.0,0.26762876]
[1744881014015,0.006843,84424.0,84423.0,0.26762876]
[1744881018085,0.006843,84424.0,84423.0,0.26758876]
[1744881028396,0.006843,84424.0,84419.0,0.4188]
[1744881028397,0.23691068,84420.0,84419.0,0.4188]
[1744881028637,0.2369191,84417.0,84416.0,0.0154718]
[1744881028802,0.32548892,84417.0,84416.0,0.0154718]
[1744881029017,0.32812943,84417.0,84416.0,0.0154718]
[1744881030229,0.33412943,84417.0,84416.0,0.0164718]
[1744881031368,0.33712943,84417.0,84416.0,0.0164718]
[1744881033470,0.38622943,84417.0,84416.0,0.0164718]
[1744881035725,0.51986943,84417.0,84416.0,0.0164718]
[1744881036469,0.51986943,84417.0,84416.0,0.0154718]
[1744881036842,0.51086943,84417.0,84416.0,0.0154718]
[1744881037007,0.52186943,84417.0,84416.0,0.0164718]
[1744881037436,0.51786943,84417.0,84416.0,0.0164718]
[1744881037954,0.52186943,84417.0,84416.0,0.0164718]
[1744881039157,0.36822943,84417.0,84416.0,0.0164718]
[1744881051433,0.36922943,84417.0,84416.0,0.0164718]
[1744881052990,0.27392943,84417.0,84416.0,0.0164718]
[1744881054652,0.36852943,84417.0,84416.0,0.0164718]
[1744881057067,0.48797734,84417.0,84416.0,0.0164718]
[1744881059764,0.62161734,84417.0,84416.0,0.0164718]
[1744881069281,0.96161734,84417.0,84416.0,0.0164718]
[1744881075744,1.37251734,84417.0,84416.0,0.0164718]
[1744881091620,1.37351734,84417.0,84416.0,0.0164718]
[1744881097458,1.27891734,84417.0,84416.0,0.0164718]
[1744881109661,1.27891734,84417.0,84416.0,1e-08]
[1744881109865,1.31210579,84417.0,84416.0,1e-08]
[1744881111298,1.31010579,84417.0,84416.0,1e-08]
[1744881111735,1.30610579,84417.0,84416.0,1e-08]
[1744881111988,0.23695559,84404.0,84403.0,0.00013538]
[1744881112186,0.40932541,84404.0,84403.0,0.00013538]
[1744881112444,0.41249884,84404.0,84403.0,0.00113538]
[1744881113297,0.41549884,84404.0,84403.0,0.00113538]
[1744881113496,0.41749884,84404.0,84403.0,0.00113538]
[1744881114641,0.42993025,84404.0,84403.0,0.00113538]
[1744881116115,0.43861573,84404.0,84403.0,0.00113538]
[1744881116873,0.55806364,84404.0,84403.0,0.00113538]
[1744881117065,0.23699771,84389.0,84388.0,0.0498]
[1744881117223,0.26936753,84389.0,84388.0,0.04986967]
[1744881117425,0.27251731,84389.0,84388.0,6.967e-05]
[1744881118803,0.27451731,84389.0,84388.0,6.967e-05]
[1744881120098,0.2871591,84389.0,84388.0,0.00106967]
[1744881121064,0.23701456,84383.0,84382.0,0.0004214]
[1744881121393,0.52427284,84383.0,84382.0,0.0004214]
[1744881121593,0.52290302,84383.0,84382.0,0.0004214]
[1744881122857,0.52690302,84383.0,84382.0,0.0004214]
[1744881124524,0.41045511,84383.0,84382.0,0.0004214]
[1744881127189,0.17344055,84383.0,84382.0,0.0461214]
[1744881127356,0.25045511,84383.0,84382.0,0.0461214]
[1744881129249,0.01344055,84383.0,84382.0,0.0461214]
[1744881129626,0.01344055,84383.0,84382.0,0.28313877]
[1744881130026,0.01344055,84383.0,84382.0,0.0461214]
[1744881130223,0.01344055,84383.0,84382.0,0.28313877]
[1744881132643,0.01344055,84383.0,84382.0,0.45268668]
[1744881132846,0.008,84383.0,84382.0,0.45268668]
[1744881133405,0.005,84383.0,84382.0,0.45268668]
[1744881134844,0.005,84383.0,84382.0,0.45209744]
[1744881135046,0.001,84383.0,84382.0,0.45209744]
[1744881136192,0.002,84383.0,84382.0,0.45409744]
[1744881139590,0.00737181,84383.0,84382.0,0.45409744]
[1744881139996,0.002,84383.0,84382.0,0.45409744]
[1744881142066,0.00737181,84383.0,84382.0,0.45409744]
[1744881142281,0.002,84383.0,84382.0,0.45409744]
[1744881142491,0.00737181,84383.0,84382.0,0.45409744]
[1744881143903,0.00737181,84383.0,84382.0,0.33464953]
[1744881144553,0.002,84383.0,84382.0,0.33464953]
[1744881144914,0.00736762,84383.0,84382.0,0.33464953]
[1744881150338,0.24438218,84383.0,84382.0,0.09763216]
[1744881151785,0.24538218,84383.0,84382.0,0.09763216]
[1744881151991,0.24538218,84383.0,84382.0,0.003]
[1744881163953,0.01073744,84383.0,84382.0,0.003]
[1744881165011,0.247752,84383.0,84382.0,0.003]
[1744881165315,0.24538218,84383.0,84382.0,0.003]
[1744881168422,0.00836762,84383.0,84382.0,0.24001737]
[1744881168772,0.00836762,84383.0,84382.0,0.003]
[1744881169247,0.01073744,84383.0,84382.0,0.003]
[1744881169456,0.00836762,84383.0,84382.0,0.24001737]
[1744881169674,0.003,84383.0,84382.0,0.35946528]
[1744881170228,0.003,84383.0,84382.0,0.40536528]
[1744881171218,0.001,84383.0,84382.0,0.40436528]
[1744881189005,0.001,84383.0,84382.0,0.41890613]
[1744881195603,0.001,84383.0,84382.0,0.37300613]
[1744881204663,0.002,84383.0,84382.0,0.37300613]
[1744881224054,0.24001456,84383.0,84382.0,0.002]
[1744881224436,0.2457805,84383.0,84382.0,0.002]
[1744881226171,0.3147805,84383.0,84382.0,0.002]
[1744881226361,0.3646805,84383.0,84382.0,0.002]
[1744881226520,0.37572126,84383.0,84382.0,0.002]
[1744881226704,0.39780247,84383.0,84382.0,0.002]
[1744881226901,0.23705108,84370.0,84364.0,0.01249438]
[1744881227100,0.2394209,84370.0,84364.0,0.01249438]
[1744881227317,0.24513828,84370.0,84364.0,0.01249438]
[1744881227518,0.24276846,84370.0,84364.0,0.01249438]
[1744881227772,0.34646846,84370.0,84352.0,0.0004214]
[1744881227917,0.34646846,84370.0,84353.0,0.34]
[1744881228116,0.35750228,84370.0,84353.0,0.01185494]
[1744881228708,0.35750228,84370.0,84354.0,0.0118548]
[1744881228902,0.35850228,84370.0,84353.0,0.01185494]
[1744881229108,0.34746846,84370.0,84353.0,0.01185494]
[1744881229348,0.34746846,84370.0,84352.0,0.0004214]
[1744881229900,0.34646846,84370.0,84352.0,0.0004214]
[1744881230107,0.35246846,84370.0,84352.0,0.0004214]
[1744881231014,0.35246846,84370.0,84356.0,0.01214501]
[1744881231147,0.35446846,84370.0,84356.0,0.01214501]
[1744881234859,0.35446846,84370.0,84359.0,0.01185409]
[1744881235386,0.35446846,84370.0,84360.0,0.01185395]
[1744881235786,0.35446846,84370.0,84359.0,0.01185409]
[1744881235987,0.35446846,84370.0,84360.0,0.23707897]
[1744881236226,0.35446846,84370.0,84360.0,0.01185395]
[1744881236930,0.35446846,84370.0,84360.0,0.20881178]
[1744881237204,0.35446846,84370.0,84360.0,0.19695783]
[1744881237347,0.35446846,84370.0,84360.0,0.20881178]
[1744881237753,0.35446846,84370.0,84360.0,0.44589066]
[1744881237953,0.35446846,84370.0,84360.0,0.20881178]
[1744881238699,0.35446846,84370.0,84369.0,0.23747529]
[1744881238700,0.01371738,84370.0,84369.0,0.23747529]
[1744881240348,0.008,84370.0,84369.0,0.23747529]
[1744881241695,0.007,84370.0,84369.0,0.3569232]
[1744881254858,0.007,84370.0,84369.0,0.23747529]
[1744881255305,0.01308318,84370.0,84369.0,0.23747529]
[1744881259466,0.007,84370.0,84369.0,0.23747529]
[1744881260782,0.004,84370.0,84369.0,0.23747529]
[1744881261560,0.001,84370.0,84369.0,0.23747529]
[1744881261758,0.002,84370.0,84369.0,0.23847529]
[1744881261981,0.002,84370.0,84369.0,0.3579232]
[1744881262358,0.002,84370.0,84369.0,0.71246405]
[1744881262561,0.002,84370.0,84369.0,0.80966405]
[1744881262790,0.002,84370.0,84369.0,0.81066405]
[1744881262992,1e-08,84370.0,84369.0,0.81066405]
[1744881263604,0.28672544,84404.0,84388.0,0.23700052]
[1744881263605,0.01184777,84404.0,84388.0,0.23700052]
[1744881263782,0.01184777,84404.0,84388.0,0.35881815]
[1744881263966,0.01184763,84405.0,84388.0,0.35644843]
[1744881264169,0.01184792,84403.0,84388.0,0.35644843]
[1744881264596,0.01184763,84405.0,84388.0,0.35644843]
[1744881265073,0.00113575,84389.0,84388.0,0.35744843]
[1744881267199,0.00213575,84389.0,84388.0,0.35744843]
[1744881267662,0.00213575,84389.0,84388.0,0.71198928]
[1744881269274,0.00213575,84389.0,84388.0,1.13078928]
[1744881269471,0.00213575,84389.0,84388.0,1.17948928]
[1744881269859,0.00213575,84389.0,84388.0,1.16494843]
[1744881270021,0.00213575,84389.0,84388.0,1.17948928]
[1744881270217,0.00113575,84389.0,84388.0,1.17948928]
[1744881270424,0.00013575,84389.0,84388.0,1.17848928]
[1744881270657,0.00113575,84389.0,84388.0,1.18248928]
[1744881271038,0.00013575,84389.0,84388.0,1.17848928]
[1744881271240,0.00113575,84389.0,84388.0,1.18248928]
[1744881271459,0.00113575,84389.0,84388.0,1.18348928]
[1744881273510,0.00113575,84389.0,84388.0,1.16894843]
[1744881274207,0.00113575,84389.0,84388.0,1.18348928]
[1744881279787,0.00113575,84389.0,84388.0,1.31700928]
[1744881291691,0.00113575,84389.0,84388.0,1.31800928]
[1744881292021,0.0008432,84417.0,84415.0,0.23692471]
[1744881292200,0.0008432,84417.0,84415.0,0.49238159]
[1744881292411,0.00096087,84416.0,84415.0,0.49001262]
[1744881293636,0.00196087,84416.0,84415.0,0.49001262]
[1744881296068,0.00196087,84416.0,84415.0,0.50242957]
[1744881297770,0.00196087,84416.0,84415.0,0.36878957]
[1744881301485,0.00296087,84416.0,84415.0,0.01241695]
[1744881301820,0.01184637,84414.0,84412.0,0.23693308]
[1744881302033,0.01077882,84416.0,84413.0,0.01184651]
[1744881302232,0.00533069,84416.0,84415.0,0.23692471]
[1744881302575,0.00296087,84416.0,84415.0,0.23692471]
[1744881302902,0.00196087,84416.0,84415.0,0.23692471]
[1744881304242,0.00296087,84416.0,84415.0,0.23692471]
[1744881304645,0.00396087,84416.0,84415.0,0.23692471]
[1744881305130,0.00396087,84416.0,84413.0,0.02413186]
[1744881305330,0.00396087,84416.0,84414.0,0.23692517]
[1744881305561,0.00396087,84416.0,84415.0,0.23692471]
[1744881305990,0.00296087,84416.0,84415.0,0.23692471]
[1744881306450,0.00196087,84416.0,84415.0,0.23692471]
[1744881307403,0.00296087,84416.0,84415.0,0.23692471]
[1744881308043,0.00396087,84416.0,84415.0,0.23692471]
[1744881309862,0.00396087,84416.0,84414.0,0.23692684]
[1744881310225,0.00396087,84416.0,84415.0,0.23692471]
[1744881310612,0.00196087,84416.0,84415.0,0.23692471]
[1744881311031,0.00296087,84416.0,84415.0,0.23692471]
[1744881311435,0.00196087,84416.0,84415.0,0.23692471]
[1744881311856,0.00396087,84416.0,84415.0,0.23692471]
[1744881312404,0.23692471,84415.0,84408.0,0.24879118]
[1744881312606,0.01184665,84412.0,84410.0,0.23693859]
[1744881312905,0.01184665,84412.0,84408.0,0.24878958]
[1744881312906,0.24878202,84412.0,84408.0,0.24878958]
[1744881313202,0.0054969,84411.0,84409.0,0.23693932]
[1744881313402,0.0054969,84411.0,84410.0,0.23693875]
[1744881313638,0.23693332,84412.0,84409.0,0.24878639]
[1744881313757,0.0054969,84411.0,84409.0,0.24878639]
[1744881313961,0.0054969,84411.0,84410.0,0.23793875]
[1744881314170,0.24877704,84413.0,84410.0,0.23693875]
[1744881314393,0.2424302,84412.0,84410.0,0.2369377]
[1744881314590,0.00549699,84412.0,84410.0,0.2379377]